bitfinex-derivatives/quotes_ETHF0:USTF0_20250331
["timestamp","ask_amount","ask_price","bid_price","bid_amount"]
[1743465075483,0.00822729,1822.9,1822.8,3.67931]
[1743465078094,1.3976,1823.3,1823.2,1.09716]
[1743465078286,4.30489,1823.4,1823.3,1.0971]
[1743465078685,5.70249,1823.4,1823.3,1.0971]
[1743465079292,1.0971,1823.3,1823.2,2.54364729]
[1743465079491,2.4947,1823.3,1823.2,2.54364729]
[1743465079691,1.3976,1823.3,1823.2,2.54364729]
[1743465080180,2.4947,1823.3,1823.2,0.00822729]
[1743465088200,1.09722,1823.1,1823.0,1.09728]
[1743465088402,1.09722,1823.1,1823.0,2.50808]
[1743465089006,2.60232,1823.1,1823.0,2.50808]
[1743465089504,2.60232,1823.1,1823.0,1.4108]
[1743465090002,1.09729,1823.0,1822.9,1.10552729]
[1743465090206,2.49949,1823.0,1822.9,2.48792729]
[1743465091302,2.49949,1823.0,1822.9,1.39062729]
[1743465091503,2.49949,1823.0,1822.9,2.48797729]
[1743465096004,1.09729,1823.0,1822.9,2.48797729]
[1743465096206,1.09727,1823.1,1823.0,1.09724]
[1743465096406,2.51647,1823.1,1823.0,2.14764]
[1743465097205,2.51647,1823.1,1823.0,1.0504]
[1743465097507,1.09729,1823.0,1822.9,1.10552729]
[1743465097807,2.51649,1823.0,1822.9,1.10552729]
[1743465099304,2.51649,1823.0,1822.9,0.00822729]
[1743465101205,5.72429,1823.0,1822.9,0.00822729]
[1743465102812,1.09757,1822.6,1822.5,1.09753]
[1743465103010,1.09757,1822.6,1822.5,1.82355374]
[1743465103207,1.09757,1822.6,1822.5,1.8236868]
[1743465103511,1.09757,1822.6,1822.5,1.09753]
[1743465103710,2.54317,1822.6,1822.5,1.09753]
[1743465103905,2.54317,1822.6,1822.5,1.82342106]
[1743465104113,2.54317,1822.6,1822.5,1.09753]
[1743465104810,1.4456,1822.6,1822.5,1.09753]
[1743465105013,1.4456,1822.6,1822.5,1.82326386]
[1743465105206,1.4456,1822.6,1822.5,1.09753]
[1743465105513,3.292,1822.7,1822.6,1.09753]
[1743465105707,3.292,1822.7,1822.5,1.09754]
[1743465105708,1.09757,1822.6,1822.5,1.09754]
[1743465106214,1.09757,1822.6,1822.4,6.43412729]
[1743465106215,1.09759,1822.5,1822.4,6.43412729]
[1743465106512,2.47429,1822.6,1822.5,1.09759]
[1743465106907,1.09759,1822.5,1822.4,6.43412729]
[1743465107109,1.09759,1822.5,1822.4,7.15953211]
[1743465107414,1.09759,1822.5,1822.4,6.43412729]
[1743465107913,1.09759,1822.5,1822.4,7.15935869]
[1743465108115,1.09759,1822.5,1822.4,6.43412729]
[1743465109615,1.09759,1822.5,1822.4,5.33652729]
[1743465109810,17.52112,1822.5,1821.8,3.2078]
[1743465110114,1.09789,1822.0,1821.9,1.0653]
[1743465110308,4.72489,1822.0,1821.9,1.0653]
[1743465110914,6.16579,1822.0,1821.9,1.0653]
[1743465111315,6.16579,1822.0,1821.9,2.16325]
[1743465111915,6.16579,1822.0,1821.9,1.0653]
[1743465112710,6.16579,1822.0,1821.9,2.4265]
[1743465113815,6.16579,1822.0,1821.9,3.52445]
[1743465114215,6.16579,1822.0,1821.9,2.4265]
[1743465115318,6.16579,1822.0,1821.9,3.52445]
[1743465117017,6.16579,1822.0,1821.9,2.4265]
[1743465117411,6.16579,1822.0,1821.9,1.3612]
[1743465122023,1.09813,1821.6,1821.5,6.51393]
[1743465122224,2.74488,1821.9,1821.5,6.51393]
[1743465122225,1.09812,1821.7,1821.6,1.0981]
[1743465123217,12.7408,1822.0,1821.6,2.74533]
[1743465123415,1.09799,1821.9,1821.8,1.09797]
[1743465123619,1.09804,1821.8,1821.7,1.09802]
[1743465129932,2.50699,1821.9,1821.8,1.09801]
[1743465130229,1.09807,1821.8,1821.7,1.09804]
[1743465130432,1.09797,1821.9,1821.8,1.09801]
[1743465130628,0.00822729,1822.1,1822.0,1.09789]
[1743465131932,0.00822729,1822.1,1822.0,1.82170536]
[1743465132631,0.00822729,1822.1,1822.0,3.20180536]
[1743465133235,4.72556,1822.6,1822.5,1.09759]
[1743465133527,1.09756,1822.6,1822.5,1.09759]
[1743465133827,6.13292,1822.7,1822.5,1.09758]
[1743465134027,2.17505,1822.8,1822.7,1.09747]
[1743465134233,2.5048,1822.9,1822.7,1.09747]
[1743465134435,2.51297729,1822.9,1822.8,1.4653]
[1743465134628,1.10557729,1822.9,1822.8,1.4653]
[1743465136334,1.10557729,1822.9,1822.8,2.56271]
[1743465136529,1.10557729,1822.9,1822.8,1.4653]
[1743465138843,1.10557729,1822.9,1822.8,2.56271]
[1743465139141,1.10557729,1822.9,1822.8,1.4653]
[1743465139327,2.10837729,1822.9,1822.8,1.4653]
[1743465140041,1.09747,1822.7,1822.6,0.00822729]
[1743465140240,1.09747,1822.7,1822.6,1.10575729]
[1743465142539,1.09746,1822.8,1822.7,1.09745]
[1743465142838,1.09746,1822.8,1822.7,2.53195]
[1743465143336,1.09746,1822.8,1822.7,1.4345]
[1743465143937,1.09746,1822.8,1822.7,2.53197]
[1743465144843,1.09746,1822.8,1822.7,3.58957]
[1743465146341,1.09746,1822.8,1822.7,1.4345]
[1743465147140,1.09746,1822.8,1822.7,2.53197]
[1743465147644,1.09746,1822.8,1822.7,1.4345]
[1743465148041,1.09747,1822.7,1822.6,0.00822729]
[1743465148239,4.72347,1822.7,1822.6,0.00822729]
[1743465151948,4.72347,1822.7,1822.6,1.10575729]
[1743465152247,4.72347,1822.7,1822.6,0.00822729]
[1743465152748,6.18027,1822.7,1822.6,1.41302729]
[1743465153747,2.55427,1822.7,1822.6,1.41302729]
[1743465153949,6.18027,1822.7,1822.6,1.41302729]
[1743465156157,10.21126,1822.8,1822.7,1.09747]
[1743465156452,9.532,1822.8,1822.7,3.20847]
[1743465156843,5.906,1822.8,1822.7,3.20847]
[1743465157048,7.00341,1822.8,1822.7,3.20847]
[1743465157241,2.51212729,1822.9,1822.7,2.111]
[1743465157451,1.09741,1822.8,1822.7,3.20842]
[1743465158551,0.00822729,1822.9,1822.8,1.09741]
[1743465158756,0.00822729,1822.9,1822.8,4.30521]
[1743465159048,0.00822729,1822.9,1822.8,5.03006636]
[1743465159645,0.00822729,1822.9,1822.8,5.03023569]
[1743465160045,1.4235,1823.4,1823.3,1.0971]
[1743465160954,1.09702,1823.5,1823.1,2.0729]
[1743465161150,1.43172729,1823.5,1823.4,1.09703]
[1743465161451,0.00822729,1823.5,1823.4,1.09703]
[1743465162058,1.10520729,1823.5,1823.4,1.09703]
[1743465162258,0.00822729,1823.5,1823.4,1.09703]
[1743465167159,1.10520729,1823.5,1823.4,1.09703]
[1743465169462,1.09709,1823.4,1823.3,1.09708]
[1743465169663,2.49369,1823.4,1823.3,1.09708]
[1743465170363,1.3966,1823.4,1823.3,1.09708]
[1743465171256,2.49364,1823.4,1823.3,1.09708]
[1743465171460,1.0971,1823.3,1823.2,4.30492]
[1743465171661,1.3966,1823.3,1823.2,4.30492]
[1743465172664,1.3966,1823.3,1823.2,5.72182]
[1743465172965,2.14538,1823.4,1823.3,1.0971]
[1743465173165,3.56408,1823.4,1823.3,2.514]
[1743465175769,3.56408,1823.4,1823.3,1.4169]
[1743465176164,1.09716,1823.2,1823.1,2.0729]
[1743465176464,1.09716,1823.2,1823.1,3.17009]
[1743465176854,2.48246,1823.2,1823.1,3.17009]
[1743465177054,1.09714,1823.3,1823.2,1.09711]
[1743465177261,1.09714,1823.3,1823.2,1.5074]
[1743465177460,2.48244,1823.3,1823.2,1.5074]
[1743465177662,2.48244,1823.3,1823.2,2.60456]
[1743465178465,1.09714,1823.3,1823.2,2.60456]
[1743465178861,5.48554,1823.3,1822.7,1.09741]
[1743465179066,1.0974,1822.9,1822.8,2.52018]
[1743465179266,1.09735,1822.9,1822.8,1.4228]
[1743465179867,1.09735,1822.9,1822.8,2.52016]
[1743465180959,2.48515,1822.9,1822.8,2.52016]
[1743465182674,2.48515,1822.9,1822.8,2.52021]
[1743465187876,2.48515,1822.9,1822.8,1.4228]
[1743465188069,2.48515,1822.9,1822.8,2.52021]
[1743465189174,2.48515,1822.9,1822.8,1.4228]
[1743465189883,2.48515,1822.9,1822.8,2.52021]
[1743465192472,2.48515,1822.9,1822.8,2.52016]
[1743465192473,1.09735,1822.9,1822.8,2.52016]
[1743465194776,1.09731,1823.0,1822.9,1.09735]
[1743465194970,1.09731,1823.0,1822.9,2.51525]
[1743465195480,7.92807,1823.1,1823.0,1.09729]
[1743465195775,2.52481,1823.2,1823.0,2.1185]
[1743465195975,3.623,1823.2,1823.1,2.10092]
[1743465196170,3.623,1823.2,1823.1,3.51882]
[1743465196381,7.00314,1823.3,1823.1,3.51882]
[1743465196382,5.906,1823.3,1823.2,1.09716]
[1743465196681,4.72006,1823.4,1823.3,1.0971]
[1743465196868,4.72006,1823.4,1823.3,1.7977]
[1743465198276,4.72006,1823.4,1823.3,0.7006]
[1743465198878,4.72006,1823.4,1823.3,2.0985]
[1743465200277,2.51924729,1823.5,1823.4,1.09704]
[1743465200577,6.14224729,1823.5,1823.4,1.4806]
[1743465201581,6.14224729,1823.5,1823.4,2.57764]
[1743465202482,6.14224729,1823.5,1823.4,1.4806]
[1743465208185,6.14224729,1823.5,1823.1,1.0037]
[1743465208386,1.09716,1823.2,1823.1,2.4116]
[1743465208587,4.71916,1823.2,1823.1,2.4116]
[1743465209183,4.71916,1823.2,1823.1,3.50882]
[1743465209383,3.622,1823.2,1823.1,3.50882]
[1743465209890,4.71916,1823.2,1823.1,3.50882]
[1743465213192,1.09716,1823.2,1823.1,3.50882]
[1743465216995,2.49295,1823.3,1823.2,1.09716]
[1743465217295,2.49295,1823.3,1823.2,3.25536]
[1743465218488,2.49295,1823.3,1823.2,2.1582]
[1743465218687,1.09715,1823.3,1823.2,2.1582]
[1743465219197,1.09715,1823.3,1823.2,3.25536]
[1743465220888,6.17979,1823.4,1823.3,1.0971]
[1743465221094,2.55779,1823.4,1823.3,2.558]
[1743465221295,4.31305729,1823.5,1823.4,1.09704]
[1743465221594,4.31305729,1823.5,1823.4,2.47604]
[1743465223096,1.10525729,1823.5,1823.4,2.47604]
[1743465223993,0.00822729,1823.5,1823.4,3.2021597]
[1743465224194,0.00822729,1823.5,1823.4,3.20212901]
[1743465224589,0.00822729,1823.5,1823.4,3.20231067]
[1743465225090,0.00822729,1823.5,1823.4,6.41011067]
[1743465225492,1.09682,1823.8,1823.7,1.09686]
[1743465225493,3.621,1823.8,1823.7,1.09686]
[1743465225697,5.72378,1823.9,1823.8,1.0968]
[1743465226190,2.51598,1823.9,1823.8,1.0968]
[1743465226798,2.51598,1823.9,1823.8,1.7968]
[1743465227001,2.51598,1823.9,1823.8,0.7]
[1743465227498,2.51598,1823.9,1823.8,2.128]
[1743465228393,1.85434729,1824.0,1823.9,1.09674]
[1743465228601,1.10494729,1824.0,1823.9,2.52474]
[1743465228994,2.55544729,1824.0,1823.9,2.52474]
[1743465229299,1.45872729,1824.0,1823.9,2.52474]
[1743465229703,2.55540729,1824.0,1823.9,2.52474]
[1743465234203,2.55540729,1824.0,1823.9,1.428]
[1743465234595,1.09674,1823.9,1823.7,0.00822729]
[1743465234798,2.46354,1823.9,1823.8,2.47699]
[1743465240003,2.46354,1823.9,1823.8,1.09679]
[1743465240506,2.46354,1823.9,1823.8,2.49329]
[1743465241097,2.46354,1823.9,1823.8,1.3965]
[1743465241302,1.0968,1823.8,1823.7,1.10508729]
[1743465241603,3.1986,1823.8,1823.7,1.10508729]
[1743465242004,3.1986,1823.8,1823.7,0.00822729]
[1743465242299,1.09707,1823.4,1823.3,1.09706]
[1743465242496,4.71703,1823.5,1823.4,1.09704]
[1743465243104,3.62,1823.5,1823.4,2.48124]
[1743465243406,3.62,1823.5,1823.4,3.18864]
[1743465243601,5.45028,1823.5,1823.4,1.3842]
[1743465244595,1.09704,1823.4,1823.3,0.00822729]
[1743465244797,2.48384,1823.4,1823.3,0.00822729]
[1743465245305,5.69164,1823.4,1823.3,0.00822729]
[1743465245493,5.69164,1823.4,1823.3,1.51262729]
[1743465246200,5.69164,1823.4,1823.3,2.60972729]
[1743465246603,5.69164,1823.4,1823.3,1.51262729]
[1743465247707,5.69164,1823.4,1823.3,2.60972729]
[1743465247909,5.69164,1823.4,1823.3,1.51262729]
[1743465248101,5.69164,1823.4,1823.3,2.60972729]
[1743465249008,5.69164,1823.4,1823.3,1.51262729]
[1743465250002,2.48384,1823.4,1823.3,1.51262729]
[1743465252505,5.69164,1823.4,1823.3,0.00822729]
[1743465256108,6.39924,1823.4,1823.3,0.00822729]
[1743465259014,1.09722,1823.1,1823.0,1.4787]
[1743465259213,4.71722,1823.1,1823.0,1.4787]
[1743465259617,6.94582,1823.1,1823.0,1.4787]
[1743465262318,6.21952,1823.1,1823.0,2.57599]
[1743465263220,1.09722,1823.1,1823.0,2.57599]
[1743465264817,7.92502,1823.2,1823.1,1.09722]
[1743465265020,3.62,1823.2,1823.1,3.24762]
[1743465265231,10.6213,1823.4,1823.1,2.1504]
[1743465265417,9.1138,1823.4,1823.3,1.0971]
[1743465265916,9.1138,1823.4,1823.3,2.4983]
[1743465266520,5.906,1823.4,1823.3,2.4983]
[1743465266720,7.00304,1823.4,1823.3,2.4983]
[1743465268724,1.09704,1823.4,1823.3,2.4983]
[1743465271922,1.09704,1823.4,1823.3,3.22403886]
[1743465272126,4.71702,1823.5,1823.4,1.09704]
[1743465272327,4.71702,1823.5,1823.4,3.22244]
[1743465272920,4.71702,1823.5,1823.4,2.1254]
[1743465273822,4.71702,1823.5,1823.4,3.22244]
[1743465274121,4.71702,1823.5,1823.4,2.1254]
[1743465275322,4.71702,1823.5,1823.4,3.22244]
[1743465276431,4.71702,1823.5,1823.4,2.1254]
[1743465276831,4.71702,1823.5,1823.4,3.22244]
[1743465277222,4.71702,1823.5,1823.4,2.1254]
[1743465278424,4.71702,1823.5,1823.4,3.22244]
[1743465278826,4.71702,1823.5,1823.4,2.1254]
[1743465279026,4.71702,1823.5,1823.4,3.22244]
[1743465279432,4.71702,1823.5,1823.4,2.1254]
[1743465280331,4.71702,1823.5,1823.4,3.22244]
[1743465280732,4.71702,1823.5,1823.4,2.1254]
[1743465280935,3.2078,1823.9,1823.4,8.0758]
[1743465281135,4.71588,1823.8,1823.7,1.09683]
[1743465281935,3.619,1823.8,1823.7,1.80733]
[1743465282144,4.7158,1823.8,1823.7,1.80733]
[1743465282435,4.7158,1823.8,1823.7,3.27543]
[1743465286123,3.619,1823.8,1823.7,3.27543]
[1743465286729,1.44022729,1824.0,1823.9,1.09674]
[1743465286730,6.15495729,1824.0,1823.9,1.09674]
[1743465287329,6.15495729,1824.0,1823.9,2.48804]
[1743465289136,6.15495729,1824.0,1823.9,1.3913]
[1743465289734,6.15495729,1824.0,1823.9,2.48804]
[1743465289938,1.10495729,1824.0,1823.9,2.48804]
[1743465290437,2.59725729,1824.0,1823.9,2.48804]
[1743465292026,2.59725729,1824.0,1823.9,1.3913]
[1743465296734,1.10495729,1824.0,1823.9,2.48804]
[1743465297734,0.00822729,1824.0,1823.9,2.48804]
[1743465299243,1.10490729,1824.0,1823.9,2.48804]
[1743465300834,0.00822729,1824.0,1823.7,0.7105]
[1743465301040,1.0968,1823.8,1823.7,3.17006]
[1743465301537,2.5843,1823.8,1823.7,3.17006]
[1743465301737,2.5843,1823.8,1823.7,2.0732]
[1743465302245,2.5843,1823.8,1823.7,3.17006]
[1743465302645,2.5843,1823.8,1823.7,2.0732]
[1743465304350,2.5843,1823.8,1823.7,3.17006]
[1743465304550,2.5843,1823.8,1823.7,2.0732]
[1743465305049,1.09694,1823.6,1823.5,1.09692]
[1743465305353,2.4586,1823.7,1823.6,3.2728]
[1743465306148,1.3617,1823.7,1823.6,3.2728]
[1743465306950,2.45856,1823.7,1823.6,3.2728]
[1743465307346,1.3617,1823.7,1823.6,3.99839974]
[1743465307653,2.45856,1823.7,1823.6,3.99839974]
[1743465307948,3.62522729,1824.0,1823.6,6.10929974]
[1743465308148,4.72195729,1824.0,1823.9,1.09674]
[1743465308344,0.00822729,1824.0,1823.9,1.09674]
[1743465308745,0.00822729,1824.0,1823.9,1.82247414]
[1743465308953,0.00822729,1824.0,1823.9,4.00777414]
[1743465309355,0.00822729,1824.0,1823.9,4.00785547]
[1743465311056,0.00822729,1824.0,1823.9,4.00807398]
[1743465311355,0.00822729,1824.0,1823.9,4.00797741]
[1743465315056,0.00822729,1824.0,1823.9,4.00772034]
[1743465318260,4.71251,1824.3,1824.2,1.09656]
[1743465319161,2.50936,1824.4,1824.3,1.0965]
[1743465319365,2.51758729,1824.4,1824.3,1.0965]
[1743465319554,2.51758729,1824.4,1824.3,2.5335]
[1743465321160,1.42112729,1824.4,1824.3,2.5335]
[1743465321862,0.00822729,1824.4,1824.3,2.5335]
[1743465323660,1.10466729,1824.4,1824.3,2.5335]
[1743465325068,0.00822729,1824.4,1824.3,2.5335]
[1743465325366,2.50136729,1824.4,1824.3,2.5335]
[1743465327964,2.50136729,1824.4,1824.3,1.437]
[1743465328361,1.40492729,1824.4,1824.1,1.82711729]
[1743465328566,1.09656,1824.2,1824.1,1.41052729]
[1743465328966,3.29946,1824.2,1824.1,1.41052729]
[1743465329168,3.29946,1824.2,1824.1,0.00822729]
[1743465341276,6.91346,1824.2,1824.1,0.00822729]
[1743465341574,6.91346,1824.2,1824.1,1.38042729]
[1743465343478,2.56486,1824.2,1824.1,1.38042729]
[1743465343777,2.56486,1824.2,1824.1,2.13192729]
[1743465344372,7.01068729,1824.4,1824.3,1.0965]
[1743465344570,7.01066729,1824.4,1824.3,1.0965]
[1743465344881,1.0965,1824.3,1824.2,2.57511]
[1743465345083,1.0965,1824.3,1824.2,3.30044423]
[1743465345783,2.58021729,1824.4,1824.3,1.0965]
[1743465345985,2.58021729,1824.4,1824.3,2.5751]
[1743465346878,2.58021729,1824.4,1824.3,1.4786]
[1743465347469,2.58021729,1824.4,1824.3,2.5751]
[1743465348071,2.58021729,1824.4,1824.3,1.4786]
[1743465348471,1.09656,1824.2,1824.1,0.75972729]
[1743465348681,4.71056,1824.2,1824.1,0.75972729]
[1743465348881,1.09656,1824.2,1824.1,1.85634729]
[1743465349080,2.52666,1824.2,1824.1,3.35114729]
[1743465349589,1.09656,1824.2,1824.1,1.50302729]
[1743465349772,4.71056,1824.2,1824.1,2.59963729]
[1743465349971,6.08236,1824.2,1824.1,2.59963729]
[1743465350980,6.08236,1824.2,1824.1,1.50302729]
[1743465351389,6.08236,1824.2,1824.1,2.59964729]
[1743465351684,6.08236,1824.2,1824.1,1.50302729]
[1743465352383,4.71056,1824.2,1824.1,2.59964729]
[1743465353581,3.614,1824.2,1824.1,2.59964729]
[1743465353784,1.09655,1824.3,1824.2,1.09656]
[1743465353981,1.10471729,1824.4,1824.3,1.0965]
[1743465354283,0.00822729,1824.4,1824.3,2.5417]
[1743465354884,1.10466729,1824.4,1824.3,2.5417]
[1743465355987,1.10466729,1824.4,1824.3,1.4452]
[1743465356182,2.56216729,1824.4,1824.3,1.4452]
[1743465356489,3.25576729,1824.4,1824.3,1.4452]
[1743465360389,1.10466729,1824.4,1824.3,2.5417]
[1743465360887,0.00822729,1824.4,1824.3,2.5417]
[1743465361493,0.00822729,1824.4,1824.3,3.26724567]
[1743465362090,0.00822729,1824.4,1824.3,3.2671516]
[1743465362290,0.00822729,1824.4,1824.3,2.5417]
[1743465363003,1.10466729,1824.4,1824.3,2.5417]
[1743465364803,2.54066729,1824.4,1824.3,2.5417]
[1743465375015,2.54066729,1824.4,1824.3,1.4452]
[1743465380120,3.23526729,1824.4,1824.3,1.4452]
[1743465382321,1.09656,1824.2,1824.1,0.00822729]
[1743465382520,1.09656,1824.2,1824.1,3.30312378]
[1743465383023,2.57146,1824.2,1824.1,1.48002729]
[1743465383318,6.18346,1824.2,1824.1,1.48002729]
[1743465384122,6.18346,1824.2,1824.1,2.57664729]
[1743465384722,6.18346,1824.2,1824.1,1.48002729]
[1743465394324,6.18346,1824.2,1824.1,2.57664729]
[1743465394524,4.70856,1824.2,1824.1,2.57664729]
[1743465394725,0.00822729,1824.4,1824.3,1.0965]
[1743465394924,5.906,1825.0,1824.3,1.0965]
[1743465394925,3.2078,1824.9,1824.8,1.0962]
[1743465395631,4.30394,1824.9,1824.8,1.0962]
[1743465396128,3.2078,1824.9,1824.8,1.0962]
[1743465396429,0.00822729,1825.0,1824.9,1.09614]
[1743465396930,0.00822729,1825.0,1824.9,1.76782301]
[1743465397731,1.10432729,1825.0,1824.9,1.76782301]
[1743465397930,1.09614,1824.9,1824.8,1.4912]
[1743465398126,1.09614,1824.9,1824.8,2.2353]
[1743465399134,1.09614,1824.9,1824.8,4.07550941]
[1743465399631,1.09614,1824.9,1824.8,3.33140941]
[1743465399632,9.27544,1824.9,1824.8,3.33140941]
[1743465399832,9.99834,1824.9,1824.8,2.19897285]
[1743465400436,9.99834,1824.9,1824.8,1.4912]
[1743465401929,17.3082,1824.9,1824.1,3.21602729]
[1743465402139,1.09634,1824.6,1824.4,1.3638]
[1743465402340,4.70726,1824.8,1824.4,4.10484]
[1743465402540,3.611,1824.8,1824.7,1.09626]
[1743465402732,3.611,1824.8,1824.6,1.09628]
[1743465403035,4.7072,1824.8,1824.7,2.0665]
[1743465403232,6.1681,1824.8,1824.7,2.0665]
[1743465405441,1.09632,1824.6,1824.5,0.7515]
[1743465406143,2.46072,1824.6,1824.5,2.2074]
[1743465406342,1.09632,1824.6,1824.5,3.30378]
[1743465406537,1.09632,1824.6,1824.5,2.2074]
[1743465406741,1.09632,1824.6,1824.5,2.91451122]
[1743465407046,2.53012,1824.6,1824.5,2.91451122]
[1743465407939,0.7229,1824.9,1824.5,2.91451122]
[1743465408147,1.09626,1824.7,1824.6,1.39]
[1743465408441,4.30406,1824.7,1824.6,2.09711122]
[1743465408638,0.00822729,1825.0,1824.6,2.09711122]
[1743465408838,1.0962,1824.8,1824.7,1.39]
[1743465409133,4.7062,1824.8,1824.7,1.39]
[1743465409339,6.8789,1824.8,1824.7,1.39]
[1743465412643,6.14,1824.8,1824.7,1.39]
[1743465414450,6.14,1824.8,1824.7,2.48626]
[1743465414752,6.14,1824.8,1824.7,1.39]
[1743465415253,4.7062,1824.8,1824.7,2.48626]
[1743465415551,9.36749,1824.9,1824.8,1.0962]
[1743465415752,5.75749,1824.9,1824.8,3.9739]
[1743465416051,5.75749,1824.9,1824.8,2.8777]
[1743465417245,3.2078,1824.9,1824.8,3.9739]
[1743465417447,1.10432729,1825.0,1824.9,1.09614]
[1743465417646,0.00822729,1825.0,1824.9,2.53394]
[1743465417947,9.0478,1825.1,1824.9,2.53394]
[1743465417948,1.09587,1825.4,1825.0,2.74018]
[1743465418249,1.09594,1825.3,1825.1,2.1606]
[1743465418449,2.57384,1825.3,1825.2,1.4378]
[1743465418644,2.57384,1825.3,1825.0,1.09604]
[1743465418645,1.09602,1825.1,1825.0,1.09604]
[1743465418849,1.09602,1825.1,1825.0,2.53384]
[1743465419057,2.58213729,1825.2,1825.0,4.37287292]
[1743465419350,3.33423729,1825.2,1825.1,1.4127]
[1743465419546,3.33423729,1825.2,1825.1,2.12002035]
[1743465419752,0.00822729,1825.2,1825.1,3.21604035]
[1743465420054,1.36532729,1825.2,1825.1,3.21604035]
[1743465420649,2.46128729,1825.2,1825.1,3.21604035]
[1743465422948,2.46128729,1825.2,1825.1,0.70732035]
[1743465423148,1.09608,1825.0,1824.9,0.00822729]
[1743465423451,7.91388,1825.0,1824.9,0.00822729]
[1743465423851,8.61958,1825.0,1824.9,0.00822729]
[1743465426343,3.9135,1825.0,1824.9,0.00822729]
[1743465426556,3.21602729,1825.2,1824.9,3.95082729]
[1743465426752,3.21602729,1825.2,1825.1,1.09602]
[1743465426955,1.09602,1825.1,1825.0,2.1126]
[1743465427255,6.19102,1825.1,1825.0,1.3871]
[1743465427642,6.19102,1825.1,1825.0,2.1126]
[1743465428045,6.19102,1825.1,1825.0,1.3871]
[1743465428246,6.89932,1825.1,1825.0,2.51248903]
[1743465428848,2.58102,1825.1,1825.0,3.60856903]
[1743465429049,3.21602729,1825.2,1825.1,1.09602]
[1743465429250,3.21602729,1825.2,1825.1,2.52482]
[1743465429458,3.21602729,1825.2,1825.1,3.65020903]
[1743465429755,4.31198729,1825.2,1825.1,3.65020903]
[1743465431252,4.31198729,1825.2,1825.1,1.12538903]
[1743465431453,7.18718729,1825.2,1825.1,1.12538903]
[1743465432058,1.09602,1825.1,1825.0,1.4908]
[1743465432253,1.09608,1825.0,1824.9,0.00822729]
[1743465432460,7.91488,1825.0,1824.9,0.00822729]
[1743465433958,9.38428,1825.0,1824.9,0.00822729]
[1743465438361,11.02851,1825.0,1824.6,0.7128]
[1743465438562,4.30406,1824.7,1824.6,2.1884]
[1743465438762,7.91406,1824.7,1824.6,2.1884]
[1743465439156,7.91406,1824.7,1824.6,2.89155492]
[1743465439358,9.35846,1824.7,1824.6,2.89155492]
[1743465442861,4.30406,1824.7,1824.6,2.89155492]
[1743465443066,3.2078,1824.7,1824.6,3.98787492]
[1743465443265,4.30406,1824.7,1824.6,5.11280249]
[1743465443660,1.09626,1824.7,1824.6,5.11280249]
[1743465444060,3.61,1824.8,1824.6,5.11280249]
[1743465444061,1.09625,1824.8,1824.7,1.09626]
[1743465444362,1.09625,1824.8,1824.7,2.48766]
[1743465444570,1.09625,1824.8,1824.7,4.31574249]
[1743465445267,1.09625,1824.8,1824.7,3.19081492]
[1743465446367,1.09625,1824.8,1824.7,2.09455492]
[1743465446670,1.09625,1824.8,1824.7,3.19081492]
[1743465446868,1.09625,1824.8,1824.7,4.31569899]
[1743465447268,7.91398,1824.9,1824.8,1.0962]
[1743465447469,7.91398,1824.9,1824.8,3.1838]
[1743465447665,7.91398,1824.9,1824.8,2.0876]
[1743465448070,7.91398,1824.9,1824.8,2.79075492]
[1743465449170,4.70618,1824.9,1824.8,3.88695492]
[1743465449570,4.70618,1824.9,1824.8,3.91595063]
[1743465449771,4.70618,1824.9,1824.8,5.01215063]
[1743465450271,1.09618,1824.9,1824.8,5.01215063]
[1743465450472,4.70613,1825.0,1824.9,1.09614]
[1743465450970,4.70613,1825.0,1824.9,1.79929492]
[1743465452078,1.09613,1825.0,1824.9,1.79929492]
[1743465453566,1.09613,1825.0,1824.9,0.70315492]
[1743465454073,1.09613,1825.0,1824.9,1.82872038]
[1743465454467,1.09613,1825.0,1824.9,0.70315492]
[1743465454870,2.57083,1825.0,1824.9,0.70315492]
[1743465455272,3.29543,1825.0,1824.9,0.70315492]
[1743465455774,1.0962,1824.8,1824.7,0.7133]
[1743465455962,1.0962,1824.8,1824.7,1.80956]
[1743465456368,1.0962,1824.8,1824.7,2.54251911]
[1743465456577,2.4729,1824.8,1824.7,2.54251911]
[1743465458762,1.3767,1824.8,1824.7,3.63877911]
[1743465459167,1.0962,1824.8,1824.7,3.63877911]
[1743465460275,1.0962,1824.8,1824.7,4.36420105]
[1743465461176,1.0962,1824.8,1824.7,4.36450023]
[1743465461676,1.0962,1824.8,1824.7,2.54251911]
[1743465461876,4.7062,1824.8,1824.7,1.82921911]
[1743465462076,6.1405,1824.8,1824.7,1.82921911]
[1743465462978,6.1405,1824.8,1824.7,3.25581911]
[1743465469581,2.5305,1824.8,1824.7,3.25581911]
[1743465469781,6.1405,1824.8,1824.7,3.25581911]
[1743465473590,4.7062,1824.8,1824.7,3.25581911]
[1743465473790,4.7062,1824.8,1824.7,3.98197461]
[1743465473991,4.7062,1824.8,1824.7,3.98197734]
[1743465474284,1.0962,1824.8,1824.7,3.98199443]
[1743465474482,3.61,1824.8,1824.7,5.07825443]
[1743465474682,4.70618,1824.9,1824.7,5.07821443]
[1743465474887,1.0962,1824.8,1824.7,1.82921911]
[1743465475078,1.09638,1824.5,1824.4,1.3961]
[1743465475284,4.70638,1824.5,1824.4,1.3961]
[1743465475682,6.14208,1824.5,1824.4,1.3961]
[1743465477388,1.09644,1824.4,1824.3,0.00822729]
[1743465477590,7.14924,1824.4,1824.3,0.00822729]
[1743465480695,1.09656,1824.2,1824.1,1.4927]
[1743465480997,7.91436,1824.2,1824.1,1.4927]
[1743465482899,1.09662,1824.1,1824.0,0.71522729]
[1743465483201,3.19782,1824.1,1824.0,0.71522729]
[1743465483404,3.94232,1824.1,1824.0,0.71522729]
[1743465488401,1.10483729,1824.2,1824.1,1.09662]